Cogmind - Beta 15 @@@ ROGUE MODE // 2025.07.13 @ 22:21:04 Player: Windjigo Result: Destroyed by GZ-YTX(R) with Subdweller Laser Performance ------------- Evolutions (0) 0 Regions Visited (2) 400 Robots Destroyed (21) 105 Value Destroyed (499) 499 Prototype IDs (1) 20 Alien Tech Used (0) 0 Bonus (0) 0 TOTAL SCORE: 1024 Bonus ------- None Cogmind --------- Core Integrity 0/250 Matter 284/300 Energy 180/180 System Corruption 0% Temperature Cool (12) Movement Rolling (100) Location -10/Subcaves Parts ------- > --- POWER (1) -------- Meta Core > --- PROPULSION (2+1) - Compact Wheel Compact Wheel > --- UTILITY (2+1) ---- Medium Storage Unit Makeshift Targeting Computer (+) Makeshift Light Armor Plating > --- WEAPON (2+1) ----- Subdweller Laser Light Cannon > --- INVENTORY (10) --- Subdweller Power Source Improved Heat Sink Subdweller Optics Signal Interpreter Makeshift System Shield Beam Cannon Light Cannon Grenade Launcher Mining Laser Flamer Peak State ------------ > --- POWER ------------ Meta Core > --- PROPULSION ------- Compact Wheel Compact Wheel > --- UTILITY ---------- Medium Storage Unit Makeshift Targeting Computer Makeshift Light Armor Plating > --- WEAPON ----------- Subdweller Laser Light Cannon > --- INVENTORY -------- Ion Engine Light Ion Engine Subdweller Power Source Improved Heat Sink Subdweller Optics Signal Interpreter Beam Cannon Light Cannon Grenade Launcher Mining Laser [Rating: 26] Favorites ----------- Power Ion Engine Engine Ion Engine Power Core Meta Core Propulsion Wheel Wheel Wheel Utility Sensor Array Device Sensor Array Storage Medium Storage Unit Processor Makeshift Targeting Computer Protection Makeshift Light Armor Plating Weapon Medium Laser Energy Gun Medium Laser Energy Cannon Beam Cannon Ballistic Gun Assault Rifle Ballistic Cannon Light Cannon Special Weapon Mining Laser Build | -11 -10 -10 ------- Run | Yrd Mat Sub Slots Evolved . | . . . Power . | . . . Propulsion . | . . . Utility . | . . . Weapon . | . . . Parts Attached 25 | 8 8 9 Power 3 | 1 1 1 Engine 2 | 1 1 . Core 1 | . . 1 Reactor . | . . . Propulsion 8 | 3 3 2 Treads . | . . . Leg . | . . . Wheel 8 | 3 3 2 Hover . | . . . Flight . | . . . Utility 7 | 2 2 3 Device 3 | 1 1 1 Storage 2 | 1 1 . Processor 1 | . . 1 Hackware . | . . . Protection 1 | . . 1 Artifact . | . . . Weapon 7 | 2 2 3 Energy Gun 3 | 2 . 1 Energy Cannon 1 | . . 1 Ballistic Gun 1 | . 1 . Ballistic Cannon 1 | . . 1 Launcher . | . . . Special Weapon 1 | . 1 . Impact Weapon . | . . . Slashing Weapon . | . . . Piercing Weapon . | . . . Special Melee Weapon . | . . . Unidentified Prototypes 1 | . . 1 Parts Lost 5 | . 1 4 Power . | . . . Propulsion 2 | . 1 1 Utility 1 | . . 1 Weapon 2 | . . 2 Highest Loss Streak 3 | . 1 3 To Critical Strikes 1 | . . 1 Average Backups 8 | 3 8 9 Power 1 | . 1 2 Propulsion 1 | 1 1 . Utility 1 | . 1 2 Weapon 3 | . 3 4 Tool/Special . | . . . Unused Backups 12 | . 2 10 Power 3 | . . 3 Propulsion 1 | . 1 . Utility 4 | . . 4 Weapon 4 | . 1 3 Tool/Special . | . . . Average Slot Usage (%) 96 | . 99 89 Engine 11 | . 14 7 Core 1 | . . 4 Wheel 26 | . 27 23 Device 12 | . 14 10 Storage 13 | . 14 12 Processor 1 | . . 4 Energy Gun 14 | . 17 8 Energy Cannon 1 | . . 4 Ballistic Gun 9 | . 10 6 Ballistic Cannon 1 | . . 6 Peak Build Rating 26 | 7 8 26 Average Rating 9 | 5 7 15 On Entrance 5 | . 7 8 Naked Turns . | . . . Heaviest Build 27 | 14 20 27 Greatest Support 32 | 26 26 32 Greatest Overweight (x) 1 | 1 . 1 Average Overweight (x) . | . . . Largest Inventory Capacity 10 | 8 10 10 Average Capacity 9 | 7 9 10 Most Carried 10 | 7 10 10 Average Carried 8 | 3 8 9 Final Capacity 10 | 8 10 10 Final Carried 10 | 6 10 10 Class Distribution -------------------- 100% | Mutant Dominant Class ---------------- Mutant | -10/Materials Mutant | -10/Subcaves Resources | -11 -10 -10 ----------- Run | Yrd Mat Sub Matter Collected 603 | 214 242 147 Remotely . | . . . Salvage Created 657 | 148 403 106 Parts 32 | 9 17 6 Haulers Intercepted 1 | . 1 . Recyclers Shooed . | . . . Parts Field Recycled . | . . . Retrieved Matter . | . . . Parts Self-Destructed 8 | . . 8 Prevented . | . . . Kills | -11 -10 -10 ------- Run | Yrd Mat Sub Combat Hostiles Destroyed 13 | . 10 3 Guns 11 | . 10 1 Cannons 2 | . . 2 Classes Destroyed 7 | 2 4 1 Tunneler 4 | 4 . . Hauler 1 | . 1 . Recycler 1 | 1 . . Watcher 2 | . 2 . Swarmer 3 | . 3 . Grunt 8 | . 7 1 Subdweller 2 | . . 2 Best Kill Streak 3 | 2 3 2 Combat Bots Only 3 | . 3 2 Max Kills in Single Turn 1 | 1 1 1 Gunslinging . | . . . Exploded . | . . . Melee . | . . . Uniques/NPCs Destroyed . | . . . Combat | -11 -10 -10 -------- Run | Yrd Mat Sub Hostile Shots Fired 78 | . 37 41 Missed 20 | . 10 10 Hits 58 | . 27 31 Projectile 58 | . 27 31 Critical Strikes 4 | . 1 3 Damage Taken 941 | . 308 633 Core 256 | . 63 193 Absorbed by Shields . | . . . Core Remaining (%) 100 | 100 . . Volleys Fired 94 | 16 42 36 Largest 2 | 2 2 2 Hottest 100 | 90 100 90 Shots Fired 170 | 32 82 56 Gun 141 | 32 80 29 Cannon 27 | . . 27 Launcher . | . . . Special 2 | . 2 . Kinetic 53 | . 29 24 Thermal 117 | 32 53 32 Explosive . | . . . Electromagnetic . | . . . Robot Hit Streak 14 | 10 7 14 Robot Miss Streak 5 | 2 5 2 Penetration Max . | . . . Secondary Targets . | . . . Shots Hit Robots 106 | 23 45 38 Core Hits 35 | 5 21 9 Critical Kills 1 | . 1 . Critical Parts Destroyed . | . . . Critical Strikes 5 | 2 3 . Burn 4 | 2 2 . Destroy 1 | . 1 . Melee Attacks . | . . . Impact . | . . . Slashing . | . . . Piercing . | . . . Sneak Attacks . | . . . Combat Hostiles . | . . . Follow-up Attacks . | . . . Damage Inflicted 1332 | 283 577 472 Guns 975 | 283 577 115 Cannons 357 | . . 357 Explosions . | . . . Melee . | . . . Ramming . | . . . Kinetic 504 | . 218 286 Thermal 828 | 283 359 186 Explosive . | . . . Electromagnetic . | . . . Impact . | . . . Slashing . | . . . Piercing . | . . . Highest Corruption . | . . . Average Corruption . | . . . Corruption Purged . | . . . Corruption Blocked . | . . . Overload Shots . | . . . Overflow Damage . | . . . Projectiles . | . . . Explosions . | . . . Melee . | . . . Knockbacks 3 | . . 3 Impact . | . . . Kinetic 3 | . . 3 Secondary . | . . . Self-Inflicted Damage . | . . . Shots . | . . . Rammed . | . . . Targets Rammed . | . . . Kicked . | . . . Crushed . | . . . Highest Temperature 330 | 180 330 1 Average Temperature 67 | 69 66 1 Received Heat Transfer 354 | . 159 195 Effects 2 | . 2 . Energy Bleed 1 | . 1 . Damage (minor) 1 | . 1 . Siege Activations . | . . . Martial Activations . | . . . Shielding Activations . | . . . Robots Disrupted . | . . . Combat Hostiles . | . . . Robots Corrupted . | . . . Combat Hostiles . | . . . Parts Fried . | . . . Impact Corruptions . | . . . Robots Melted 1 | 1 . . Combat Hostiles . | . . . Parts Melted 2 | . 2 . Heat Transferred 2472 | 928 1149 395 Parts Sabotaged . | . . . Parts Stolen . | . . . Parts Stripped . | . . . Power Chain Reactions . | . . . Alert | -11 -10 -10 ------- Run | Yrd Mat Sub Maximum Alert Level . | . . . Low Security (%) 100 | 100 100 . Level 1 . | . . . Level 2 . | . . . Level 3 . | . . . Level 4 . | . . . Level 5 . | . . . High Security . | . . . Max Security . | . . . Peak Influence 140 | 10 140 . Initial . | . . . Average 45 | 1 50 . Influence Increases 422 | 25 352 45 Destroy 0b10 Robot/C 220 | . 200 20 Destroy 0b10 Robot/NC 40 | 25 15 . Destroy Leader 56 | . 46 10 Successful Hack 14 | . 14 . Select Force Hacks 30 | . 30 . Disable Machine 15 | . 15 . Destroy Structure 2 | . 2 . Lose Combat Pursuer 45 | . 30 15 Influence Decreases 422 | 25 269 128 Entered New Map 41 | . . 41 Time Decay 371 | 25 259 87 Lost Part 10 | . 10 . Squads Dispatched 2 | . 2 . Investigation 2 | . 2 . Extermination . | . . . Reinforcement . | . . . Assault . | . . . Garrison . | . . . Intercept . | . . . Searches Triggered . | . . . Construction Impeded . | . . . Haulers Reinforced . | . . . Active Scanning Responses . | . . . Cargo Convoy Interrupts . | . . . Stealth | -11 -10 -10 --------- Run | Yrd Mat Sub Distress Signals . | . . . Communications Jammed . | . . . Distress Signals . | . . . Times Spotted 22 | . 16 6 Peak Tracking Total 4 | . 4 2 Tactical Retreats 2 | . 1 1 Traps | -11 -10 -10 ------- Run | Yrd Mat Sub Traps Triggered 1 | . 1 . Indirectly . | . . . Trap Hack Attempts . | . . . Triggered . | . . . Disarmed . | . . . Reprogrammed . | . . . Reused . | . . . Traps Extracted . | . . . Installed . | . . . Triggered . | . . . Machines | -11 -10 -10 ---------- Run | Yrd Mat Sub Machines Disabled 2 | . 2 . Max in Single Turn 1 | . 1 . Machines Repaired . | . . . Machines Dismantled . | . . . Machines Sabotaged . | . . . Overloaded Fab Kills . | . . . Hacking | -11 -10 -10 --------- Run | Yrd Mat Sub Machines Accessed 7 | . 7 . Terminals 6 | . 6 . Fabricators . | . . . Repair Stations . | . . . Recycling Units 1 | . 1 . Scanalyzers . | . . . Garrison Access . | . . . Total Hacks 17 | . 17 . Successful 12 | . 12 . Failed 5 | . 5 . Catastrophic 1 | . 1 . Database Lockouts . | . . . Manual 17 | . 17 . Terminals 15 | . 15 . Fabricators . | . . . Repair Stations . | . . . Recycling Units 2 | . 2 . Scanalyzers . | . . . Garrison Access . | . . . Terminal Hacks 5 | . 5 . Robot Analysis 2 | . 2 . Recall Investigation 1 | . 1 . Zone Layout 2 | . 2 . Fabricator Hacks . | . . . Repair Station Hacks . | . . . Recycling Unit Hacks 1 | . 1 . Retrieve Components 1 | . 1 . Scanalyzer . | . . . Garrison Access Hacks . | . . . Unauthorized Hacks 6 | . 6 . Terminals 5 | . 5 . Botnet 5 | . 5 . Fabricators . | . . . Repair Stations . | . . . Recycling Units 1 | . 1 . Tunnel 1 | . 1 . Scanalyzers . | . . . Garrison Access . | . . . Data Cores Recovered . | . . . Used . | . . . Hacking Detections 6 | . 6 . Full Trace Events 1 | . 1 . Feedback Events . | . . . Feedback Blocked . | . . . Robot Schematics Acquired . | . . . Robots Built . | . . . Authchips . | . . . Time . | . . . Total Robot Build Rating . | . . . Part Schematics Acquired . | . . . Parts Built . | . . . Authchips . | . . . Time . | . . . Total Part Build Rating . | . . . Parts Repaired . | . . . Time . | . . . Parts Recycled . | . . . Recycled Matter . | . . . Retrieved Matter . | . . . Retrieved Components 3 | . 3 . Parts Scanalyzed . | . . . Part Schematics Acquired . | . . . Parts Damaged . | . . . Bothacking | -11 -10 -10 ------------ Run | Yrd Mat Sub Used RIF Installer . | . . . Robots Hacked . | . . . Non-combat . | . . . Combat . | . . . Robot Hacks Applied . | . . . Relay Couplers Released . | . . . Fabnet Peak Effective % . | . . . Robots Rewired . | . . . Allies Hacked . | . . . Hacks Repelled . | . . . Allies | -11 -10 -10 -------- Run | Yrd Mat Sub Total Allies . | . . . Largest Group . | . . . Highest-Rated Group . | . . . Highest-Rated Ally . | . . . Total Orders . | . . . Ally Attacks . | . . . Total Damage . | . . . Kills . | . . . Allies Corrupted . | . . . Allies Melted . | . . . Intel | -11 -10 -10 ------- Run | Yrd Mat Sub Active Infowar (turns) 1424 | 46 1139 239 Sensors 1098 | . 859 239 Seismic 326 | 46 280 . Robot Analysis Total 2 | . 2 . Derelict Logs Recovered . | . . . Drone Launches . | . . . Drone Recoveries . | . . . Exploration | -11 -10 -10 ------------- Run | Yrd Mat Sub Turns Passed 1753 | 129 1139 485 Spaces Moved 1063 | 67 611 385 Core 16 | 16 . . Treads . | . . . Legs . | . . . Wheels 1047 | 51 611 385 Hover . | . . . Flight . | . . . Fastest Speed 50 | 50 80 90 Average Speed 86 | 85 81 95 Slowest Speed 115 | 100 90 115 Overloaded Moves . | . . . Propulsion Burnouts . | . . . Robots Hopped . | . . . Potential Cave-ins . | . . . Cave-ins Triggered . | . . . Exploration Rate (%) 39 | 5 84 29 Regions Visited 2 Branch Regions 1 Pre-discovered Areas 1 | . 1 . Known Exits Taken . | . . . Unknown Exits Taken 2 | 1 1 . Scrap Searched . | . . . Spaces Dug . | . . . Terrain Destroyed . | . . . Melee . | . . . Projectile . | . . . AOE . | . . . Terrain Rammed . | . . . Walls Destroyed . | . . . Machines Disabled . | . . . Actions | -11 -10 -10 --------- Run | Yrd Mat Sub Total 1723 | 105 1168 450 Wait 496 | 2 488 6 Move 1061 | 66 610 385 Hop . | . . . Pick Up 30 | 13 9 8 Fast Attach 2 | . 1 1 Attach 14 | 7 1 6 Detach 1 | . . 1 Swap 11 | 1 8 2 Drop 14 | . 9 5 Fire 94 | 16 42 36 Melee . | . . . Ram . | . . . Kick . | . . . Crush . | . . . Escape Stasis . | . . . Rewire . | . . . Trap . | . . . Miscellaneous . | . . . Route ------- -11/Scrapyard -10/Materials (discovered 4 exits: [*Mat] / [*Min x2] / [*Sub]) -10/Subcaves (discovered 2 exits: [*Mat] / [Scr]) History --------- Turn | Location | Event 22 | -11/Scrapyard | Discovered new exit (range 15) 130 | -11/Scrapyard | Entered Materials 303 | -10/Materials | Build established: Mutant 430 | -10/Materials | Discovered new exit (range 15) 1007 | -10/Materials | Discovered new exit (range 15) 1109 | -10/Materials | Discovered new exit (range 9) 1258 | -10/Materials | Discovered new exit (range 9) 1269 | -10/Materials | Entered Subcaves 1270 | -10/Subcaves | Approached by a straggling Scientist 1312 | -10/Subcaves | Discovered new exit (range 13) 1364 | -10/Subcaves | Scientist uncovered a shortcut to Scraptown 1454 | -10/Subcaves | A Subdweller sparked back to life 1454 | -10/Subcaves | A Subdweller sparked back to life 1454 | -10/Subcaves | A Subdweller sparked back to life 1465 | -10/Subcaves | Core integrity fell below 50% 1507 | -10/Subcaves | Lost 3 parts (1n2w) 1516 | -10/Subcaves | Found Prototype Power Core 1517 | -10/Subcaves | Identified Meta Core 1518 | -10/Subcaves | Attached Meta Core, gained temporary slots: Propulsion, Utility, Weapon 1543 | -10/Subcaves | A swath of the cavern ceiling suddenly collapsed 1671 | -10/Subcaves | Shifting Twisted Machinery released Mak. Light Armor Plating 1682 | -10/Subcaves | Shifting Twisted Machinery released Flamer 1753 | -10/Subcaves | Core integrity fell below 20% 1754 | -10/Subcaves | Destroyed by GZ-YTX(R) with Subdweller Laser Last Messages --------------- 01534_ Acquired 2 matter. 01536_ Acquired 44 matter. 01538_ Acquired 4 matter. 01543_ Ion Engine crushed. A swath of the cavern ceiling suddenly collapses. 01652_ LY-LHZ(z): "She is not going to be happy we haven't found any suitable candidates yet." Mak. Light Armor Plating falls loose from the Twisted Machinery. Flamer falls loose from the Twisted Machinery. 01693_ Acquired Mak. Light Armor Plating. 01707_ Acquired 18 matter. 01709_ Acquired 2 matter. 01711_ Dropped Lgt. Ion Engine. 01711_ Acquired Mak. System Shield. 01718_ Dropped Ion Engine. 01719_ Acquired Flamer. 01748_ Sub. Laser shoots sparks and powers down. 01748_ YV-473(R) knocked back. Map ----- +----------------------------------------------------+ | ?????????????????????????????????????????????????? | | ?????????????????????????????????????????????????? | | ?????????????????????????????????????????????????? | | ?????????????????????????????????????????????????? | | ?????????????????????????????????????????????????? | | ?????????????????????????????????????????????????? | | ?????????????????????????????????????????????????? | | ?????????????????????????????????????????????????? | | ?????????????????????????????????????????????????? | | ?????????????????????????????????????????????????? | | ?????????????????????????????????????????????????? | | ?????????????????????????????????????????????????? | | ?????????????????????????????????????????????????? | | ??????????????????????###???????##???????????????? | | ?????????????????????## ##????? #####???????????? | | ?????????????????????# #???? ##??????????? | | ??????????????????? ? ##?## ???????????? | | ???????????????????""## ## ?????????????? | | ???????????????????#""# ???????????????? | | ???????????????????#""" ?????????????????? | | ????????????????????#"" ????????????#"#????? | | ?????????????????????# #????????????#""#????? | | ?????????????????????# % #####??????##"""#????? | | ?????????????????????##R%# # #####?##""" #????? | | ?????????????????????#"# #R # #"### """ #????? | | ???????????????????? "?# @ ## " " """#????? | | ??????????????????# #""# ## " * " """"#????? | | ??????????????????#?#"" * % * ""#" """ #????? | | ????????????????????##"# * ""###" """##????? | | ?????????????????????### #### """"###" ###?????? | | ???????????????????????###??######"" ## "##??????? | | ?????????????????????????????????#"""# ""#??????? | | ?????????????????????????????????##" ## "##??????? | | ??????????????????????????????????????# ""#??????? | | ??????????????????????????????????????#" #??????? | | ?????????????????????????????????????## " #??????? | | ?????????????????????????????????????# ""##??????? | | ?????????????????????????????????????# "" #??????? | | ?????????????????????????????????????# ""##??????? | | ?????????????????????????????????????## #???????? | | ?????????????????????????????????????## #???????? | | ?????????????????????????????????????# #???????? | | ?????????????????????????????????????# ##??????? | | ?????????????????????????????????????## ##?????? | | ?????????????????????????????????????# #?????? | | ????????????????????????????????????## #?????? | | ????????????????????????????????????# #?????? | | ????????????????????????????????????# ##????? | | ?????????#########???????????#####?## #????? | | ???????? #??????????## #?# ##????? | +----------------------------------------------------+ Best States ------------- Heat Dissipation 39 Energy Generation 17 Energy Capacity 250 Matter Stores 300 Matter Capacity 300 Sight Range 16 Robot Scan Range 14 Terrain Scan Density 10 Armor Coverage 100 Evasion (%) 44 Targeting Accuracy 10 Item Schematics ----------------- None Robot Schematics ------------------ None Fabricated ------------ Nothing Repaired ---------- Nothing Alien Tech Used ----------------- None Achievements -------------- None Challenges ------------ None Game ------ Seed PortableBraceFacilitator Manual? 0 Play Time 00:18:46 Cumulative 99.2 hours Start 2025.07.13 @ 22:03:30 End 2025.07.13 @ 22:21:04 Sessions 1 Manual Loads 0 Difficulty Rogue Special Mode None Game No. 77 Rogue 77 Adventurer 0 Explorer 0 Win Type - Total 0 Types 0/0/0/0/0/0/0/0/0/0 Lore% 59 Gallery% 49 Achievement% 44 Wizard Run 0 Options --------- Layout 1 ASCII 0 Keyboard 0 Movement Mouse Keybinds 0 Fullscreen 1 Font 24/Smallcaps Map View 50x35 Zoom Use 0% Tactical HUD 1 Map Filters NONE Filters NONE Steam 1 RUN: 0a17577f-ebec-4bc9-87c2-0a53f97ae829